Cogmind - Beta 16.1 @@@ ROGUE MODE // 2026.06.22 @ 13:57:58 Player: Kathisto Result: Destroyed by L-31 Rogue with Katana Performance ------------- Evolutions (0) 0 Regions Visited (4) 800 Robots Destroyed (31) 155 Value Destroyed (523) 523 Prototype IDs (0) 0 Alien Tech Used (0) 0 Bonus (0) 0 TOTAL SCORE: 1478 Bonus ------- None Cogmind --------- Core Integrity 0/250 Matter 205/300 Energy 100/100 System Corruption 1% Temperature Hot (237) Movement Walking (260) Ox2 Location -9/Mines Parts ------- > --- POWER (1) -------- (None) > --- PROPULSION (2) --- Aluminum Leg > --- UTILITY (2) ------ Large Storage Unit Seismic Detector (fused) > --- WEAPON (2) ------- Improved Light Cannon Improved Light Cannon > --- INVENTORY (15) --- Aluminum Leg Aluminum Leg Aluminum Leg Aluminum Leg Improved Aluminum Leg High-capacity Matter Pod (200) Seismic Detector Assault Rifle Light Assault Rifle Light Assault Rifle Light Assault Rifle Improved Light Cannon Improved Light Cannon Slug Cannon Grenade Launcher Peak State ------------ > --- POWER ------------ Reinforced Deuterium Engine > --- PROPULSION ------- Aluminum Leg Aluminum Leg > --- UTILITY ---------- Large Storage Unit Seismic Detector > --- WEAPON ----------- Improved Light Cannon Improved Light Cannon > --- INVENTORY -------- Aluminum Leg Aluminum Leg Aluminum Leg Aluminum Leg Improved Aluminum Leg High-capacity Matter Pod Seismic Detector Assault Rifle Light Assault Rifle Light Assault Rifle Light Assault Rifle Improved Light Cannon Improved Light Cannon Slug Cannon Grenade Launcher [Rating: 14] Favorites ----------- Power Light Ion Engine Engine Light Ion Engine Power Core Micro Nuclear Core Propulsion Aluminum Leg Leg Aluminum Leg Utility Seismic Detector Device Seismic Detector Storage Large Storage Unit Weapon Light Assault Rifle Ballistic Gun Light Assault Rifle Ballistic Cannon Improved Light Cannon Launcher Grenade Launcher Build | -11 -10 -10 -10 -9 ------- Run | Yrd Mat Min Exi Min Slots Evolved . | . . . . . Power . | . . . . . Propulsion . | . . . . . Utility . | . . . . . Weapon . | . . . . . Parts Attached 27 | 7 6 5 1 8 Power 5 | 1 1 1 . 2 Engine 4 | 1 1 1 . 1 Core 1 | . . . . 1 Reactor . | . . . . . Propulsion 7 | 2 1 2 . 2 Treads . | . . . . . Leg 7 | 2 1 2 . 2 Wheel . | . . . . . Hover . | . . . . . Flight . | . . . . . Utility 4 | 2 1 . 1 . Device 1 | 1 . . . . Storage 3 | 1 1 . 1 . Processor . | . . . . . Hackware . | . . . . . Protection . | . . . . . Artifact . | . . . . . Weapon 11 | 2 3 2 . 4 Energy Gun . | . . . . . Energy Cannon . | . . . . . Ballistic Gun 6 | 2 2 1 . 1 Ballistic Cannon 4 | . . 1 . 3 Launcher 1 | . 1 . . . Special Weapon . | . . . . . Impact Weapon . | . . . . . Slashing Weapon . | . . . . . Piercing Weapon . | . . . . . Special Melee Weapon . | . . . . . Unidentified Prototypes . | . . . . . Parts Lost 5 | . 2 2 . 1 Power 2 | . 1 1 . . Propulsion 2 | . . 1 . 1 Utility . | . . . . . Weapon 1 | . 1 . . . Highest Loss Streak 2 | . 2 1 . 1 To Critical Strikes . | . . . . . Average Backups 9 | 1 6 11 12 12 Power . | . . . . . Propulsion 1 | . 1 . 1 1 Utility 1 | . 1 1 2 2 Weapon 6 | . 4 8 9 8 Tool/Special . | . . . . . Unused Backups 16 | . 4 . 1 11 Power 1 | . 1 . . . Propulsion 5 | . . . . 5 Utility 4 | . 1 . 1 2 Weapon 6 | . 2 . . 4 Tool/Special . | . . . . . Average Slot Usage (%) 98 | . 99 100 87 99 Engine 13 | . 13 14 14 13 Leg 27 | . 28 28 28 27 Device 14 | . 14 14 14 14 Storage 14 | . 14 14 14 14 Ballistic Gun 24 | . 27 27 15 23 Ballistic Cannon 1 | . . . . 4 Peak Build Rating 14 | 7 8 11 9 14 Average Rating 8 | 5 7 8 8 11 On Entrance 6 | . 7 8 9 9 Avg Prop Armor Cover (%) . | . . . . . Naked Turns . | . . . . . Heaviest Build 44 | 12 27 27 26 44 Greatest Support 20 | 20 20 20 20 20 Greatest Overweight (x) 2 | 2 1 1 1 2 Average Overweight (x) . | . . 1 1 1 Largest Inventory Capacity 15 | 8 15 15 15 15 Average Capacity 12 | 7 9 15 15 15 Most Carried 15 | 3 8 15 15 15 Average Carried 11 | 1 6 14 14 14 Final Capacity 15 | 8 15 15 15 15 Final Carried 15 | 3 8 15 15 15 Class Distribution -------------------- 58% | Scavenger-Mutant 41% | Mutant Dominant Class ---------------- Mutant | -10/Materials Scavenger-Mutant | -10/Mines Scavenger-Mutant | -10/Exiles Scavenger-Mutant | -9/Mines Resources | -11 -10 -10 -10 -9 ----------- Run | Yrd Mat Min Exi Min Matter Collected 1073 | 309 474 88 43 159 Remotely . | . . . . . Salvage Created 1088 | 155 780 130 . 23 Parts 62 | 14 28 17 . 3 Haulers Intercepted 2 | . 2 . . . Recyclers Shooed 2 | . 2 . . . Parts Field Recycled . | . . . . . Retrieved Matter . | . . . . . Parts Self-Destructed . | . . . . . Prevented . | . . . . . Parts Restored . | . . . . . Kills | -11 -10 -10 -10 -9 ------- Run | Yrd Mat Min Exi Min Combat Hostiles Destroyed 19 | . 11 5 . 3 Guns 11 | . 8 2 . 1 Cannons 2 | . . . . 2 AOE 6 | . 3 3 . . Classes Destroyed 8 | 2 4 1 . 1 Worker 1 | . . 1 . . Tunneler 6 | 4 1 1 . . Hauler 2 | . 2 . . . Recycler 4 | 1 3 . . . Watcher 1 | . 1 . . . Swarmer 7 | . 3 3 . 1 Grunt 10 | . 8 2 . . Assembled 2 | . . . . 2 Best Kill Streak 4 | 2 4 4 . 2 Combat Bots Only 3 | . 3 3 . 2 Max Kills in Single Turn 4 | 1 2 4 . 1 Gunslinging . | . . . . . Exploded 3 | . 2 3 . . Melee . | . . . . . Uniques/NPCs Destroyed . | . . . . . Combat | -11 -10 -10 -10 -9 -------- Run | Yrd Mat Min Exi Min Hostile Shots Fired 149 | . 59 30 . 60 Missed 52 | . 22 8 . 22 Hits 97 | . 37 22 . 38 Melee 10 | . . . . 10 Projectile 87 | . 37 22 . 28 Critical Strikes 4 | . 2 . . 2 Damage Taken 1385 | . 477 288 . 620 Core 263 | . 80 65 . 118 Absorbed by Shields . | . . . . . Core Remaining (%) 100 | 100 . . . . Volleys Fired 120 | 18 68 16 . 18 Largest 2 | 2 2 2 . 2 Hottest 66 | 40 50 40 . 66 Shots Fired 234 | 36 132 30 . 36 Gun 197 | 36 127 28 . 6 Cannon 30 | . . . . 30 Launcher 7 | . 5 2 . . Special . | . . . . . Kinetic 227 | 36 127 28 . 36 Thermal . | . . . . . Explosive 7 | . 5 2 . . Electromagnetic . | . . . . . Robot Hit Streak 12 | 5 12 6 . 5 Robot Miss Streak 4 | 2 4 1 . 2 Penetration Max . | . . . . . Secondary Targets 1 | . 1 . . . Max Gunslinging Chain 1 | . 1 . . . Shots Hit Robots 146 | 16 88 23 . 19 Core Hits 56 | 6 30 15 . 5 Critical Kills 1 | 1 . . . . Critical Parts Destroyed . | . . . . . Critical Strikes 1 | 1 . . . . Destroy 1 | 1 . . . . Melee Attacks . | . . . . . Impact . | . . . . . Slashing . | . . . . . Piercing . | . . . . . Sneak Attacks . | . . . . . Combat Hostiles . | . . . . . Follow-up Attacks . | . . . . . Damage Inflicted 2217 | 172 1282 413 . 350 Guns 1319 | 172 941 184 . 22 Cannons 325 | . . . . 325 Explosions 563 | . 341 222 . . Melee . | . . . . . Ramming 10 | . . 7 . 3 Kinetic 1644 | 172 941 184 . 347 Thermal . | . . . . . Explosive 563 | . 341 222 . . Electromagnetic . | . . . . . Impact . | . . . . . Slashing . | . . . . . Piercing . | . . . . . Highest Corruption 1 | . 1 1 1 1 Average Corruption 1 | . 1 1 1 1 Corruption Purged . | . . . . . Corruption Blocked . | . . . . . Effects 25 | . 2 8 5 10 Message Errors 10 | . 1 2 3 4 Matter Fused 5 | . 1 . 1 3 Heat Flow Errors 2 | . . 1 1 . Parts Fused 2 | . . 2 . . Data Loss (minor) 2 | . . 1 . 1 Data Loss (major) 4 | . . 2 . 2 Overload Shots . | . . . . . Overflow Damage 27 | . 21 4 . 2 Projectiles 2 | . . . . 2 Explosions 25 | . 21 4 . . Melee . | . . . . . Knockbacks 6 | . . . . 6 Impact . | . . . . . Kinetic 6 | . . . . 6 Secondary . | . . . . . Self-Inflicted Damage 16 | . . 16 . . Shots 1 | . . 1 . . Rammed . | . . . . . Targets Rammed 5 | . 1 2 . 2 Kicked 5 | . 1 2 . 2 Crushed . | . . . . . Highest Temperature 237 | . 20 137 91 237 Average Temperature 53 | . 5 28 52 89 Received Heat Transfer 504 | . 273 129 . 102 Siege Activations . | . . . . . Martial Activations . | . . . . . Shielding Activations . | . . . . . Robots Disrupted . | . . . . . Combat Hostiles . | . . . . . Robots Corrupted . | . . . . . Combat Hostiles . | . . . . . Parts Fried . | . . . . . Impact Corruptions . | . . . . . Robots Melted . | . . . . . Combat Hostiles . | . . . . . Parts Melted . | . . . . . Heat Transferred . | . . . . . Parts Sabotaged . | . . . . . Parts Stolen . | . . . . . Parts Stripped . | . . . . . Power Chain Reactions . | . . . . . Alert | -11 -10 -10 -10 -9 ------- Run | Yrd Mat Min Exi Min Maximum Alert Level . | . . . . . Low Security (%) 100 | 100 100 100 . 100 Level 1 . | . . . . . Level 2 . | . . . . . Level 3 . | . . . . . Level 4 . | . . . . . Level 5 . | . . . . . High Security . | . . . . . Max Security . | . . . . . Peak Influence 95 | 10 95 71 . 75 Initial 4 | . . 4 . . Average 12 | . 25 8 . 5 Influence Increases 607 | 25 359 147 . 76 Destroy 0b10 Robot/C 340 | . 220 100 . 20 Destroy 0b10 Robot/NC 70 | 25 35 10 . . Destroy Leader 76 | . 56 10 . 10 Destroy Structure 31 | . 18 12 . 1 Lose Combat Pursuer 90 | . 30 15 . 45 Influence Decreases 607 | 25 348 158 . 76 Entered New Map 7 | . . 7 . . Time Decay 570 | 25 328 141 . 76 Lost Part 30 | . 20 10 . . Squads Dispatched 3 | . 2 . . 1 Investigation 3 | . 2 . . 1 Extermination . | . . . . . Reinforcement . | . . . . . Assault . | . . . . . Garrison . | . . . . . Intercept . | . . . . . Searches Triggered . | . . . . . Construction Impeded . | . . . . . Haulers Reinforced . | . . . . . Active Scanning Responses . | . . . . . Cargo Convoy Interrupts . | . . . . . Stealth | -11 -10 -10 -10 -9 --------- Run | Yrd Mat Min Exi Min Distress Signals 1 | . 1 . . . Communications Jammed . | . . . . . Distress Signals . | . . . . . Times Spotted 42 | . 24 7 . 11 Peak Tracking Total 4 | . 4 3 . 4 Tactical Retreats 5 | . 2 1 . 2 Traps | -11 -10 -10 -10 -9 ------- Run | Yrd Mat Min Exi Min Traps Triggered 4 | . 4 . . . Indirectly . | . . . . . Trap Hack Attempts . | . . . . . Triggered . | . . . . . Disarmed . | . . . . . Reprogrammed . | . . . . . Reused . | . . . . . Traps Extracted . | . . . . . Installed . | . . . . . Triggered . | . . . . . Most Traps Carried 4 | . . 4 3 3 Machines | -11 -10 -10 -10 -9 ---------- Run | Yrd Mat Min Exi Min Machines Disabled 1 | . 1 . . . Max in Single Turn 1 | . 1 . . . Machines Repaired . | . . . . . Machines Dismantled . | . . . . . Machines Sabotaged . | . . . . . Overloaded Fab Kills . | . . . . . Hacking | -11 -10 -10 -10 -9 --------- Run | Yrd Mat Min Exi Min Machines Accessed 2 | . . . 1 1 Terminals . | . . . . . Fabricators . | . . . . . Repair Stations . | . . . . . Recycling Units . | . . . . . Scanalyzers . | . . . . . Garrison Access . | . . . . . Total Hacks 2 | . . . 1 1 Successful 2 | . . . 1 1 Failed . | . . . . . Catastrophic . | . . . . . Database Lockouts . | . . . . . Manual . | . . . . . Terminals . | . . . . . Fabricators . | . . . . . Repair Stations . | . . . . . Recycling Units . | . . . . . Scanalyzers . | . . . . . Garrison Access . | . . . . . Terminal Hacks 2 | . . . 1 1 Record 1 | . . . 1 . Open Door 1 | . . . . 1 Fabricator Hacks . | . . . . . Repair Station Hacks . | . . . . . Recycling Unit Hacks . | . . . . . Scanalyzer . | . . . . . Garrison Access Hacks . | . . . . . Unauthorized Hacks . | . . . . . Terminals . | . . . . . Fabricators . | . . . . . Repair Stations . | . . . . . Recycling Units . | . . . . . Scanalyzers . | . . . . . Garrison Access . | . . . . . Data Cores Recovered . | . . . . . Used . | . . . . . Hacking Detections . | . . . . . Full Trace Events . | . . . . . Feedback Events . | . . . . . Feedback Blocked . | . . . . . Robot Schematics Acquired . | . . . . . Robots Built . | . . . . . Authchips . | . . . . . Time . | . . . . . Total Robot Build Rating . | . . . . . Part Schematics Acquired . | . . . . . Parts Built . | . . . . . Authchips . | . . . . . Time . | . . . . . Total Part Build Rating . | . . . . . Part Studies Acquired . | . . . . . Parts Repaired . | . . . . . Time . | . . . . . Parts Recycled . | . . . . . Recycled Matter . | . . . . . Retrieved Matter . | . . . . . Retrieved Components . | . . . . . Parts Scanalyzed . | . . . . . Part Schematics Acquired . | . . . . . Parts Damaged . | . . . . . Bothacking | -11 -10 -10 -10 -9 ------------ Run | Yrd Mat Min Exi Min Used RIF Installer . | . . . . . Robots Hacked . | . . . . . Non-combat . | . . . . . Combat . | . . . . . Robot Hacks Applied . | . . . . . Relay Couplers Released . | . . . . . Fabnet Peak Effective % . | . . . . . Robots Rewired . | . . . . . Allies Hacked . | . . . . . Hacks Repelled . | . . . . . Allies | -11 -10 -10 -10 -9 -------- Run | Yrd Mat Min Exi Min Total Allies . | . . . . . Largest Group . | . . . . . Highest-Rated Group . | . . . . . Highest-Rated Ally . | . . . . . Total Orders . | . . . . . Ally Attacks . | . . . . . Total Damage . | . . . . . Kills . | . . . . . Allies Corrupted . | . . . . . Allies Melted . | . . . . . Intel | -11 -10 -10 -10 -9 ------- Run | Yrd Mat Min Exi Min Active Infowar (turns) 3973 | 171 1191 978 511 1122 Seismic 3973 | 171 1191 978 511 1122 Robot Analysis Total . | . . . . . Derelict Logs Recovered 3 | . . 1 . 2 Drone Launches . | . . . . . Drone Recoveries . | . . . . . Exploration | -11 -10 -10 -10 -9 ------------- Run | Yrd Mat Min Exi Min Turns Passed 4129 | 327 1191 978 511 1122 Spaces Moved 2251 | 278 706 477 266 524 Core 101 | 101 . . . . Treads . | . . . . . Legs 2150 | 177 706 477 266 524 Wheels . | . . . . . Hover . | . . . . . Flight . | . . . . . Fastest Speed 50 | 50 120 190 190 190 Average Speed 161 | 94 131 190 190 196 Slowest Speed 260 | 150 190 190 190 260 Overloaded Moves . | . . . . . Propulsion Burnouts . | . . . . . Robots Hopped . | . . . . . Potential Cave-ins . | . . . . . Cave-ins Triggered . | . . . . . Exploration Rate (%) 67 | 7 96 81 59 96 Regions Visited 4 Branch Regions 3 Pre-discovered Areas 3 | . . . 1 2 Known Exits Taken . | . . . . . Unknown Exits Taken 4 | 1 1 1 1 . Scrap Searched 2 | . . . . 2 Spaces Dug . | . . . . . Terrain Destroyed 32 | . 17 12 . 3 Melee . | . . . . . Projectile 3 | . . . . 3 AOE 29 | . 17 12 . . Terrain Rammed . | . . . . . Walls Destroyed . | . . . . . Machines Disabled . | . . . . . Actions | -11 -10 -10 -10 -9 --------- Run | Yrd Mat Min Exi Min Total 2526 | 305 842 521 273 585 Wait 69 | . 43 9 . 17 Move 2247 | 277 705 476 265 524 Hop . | . . . . . Pick Up 27 | 3 10 8 1 5 Fast Attach 12 | 7 1 1 2 1 Attach 2 | . 1 1 . . Detach . | . . . . . Swap 22 | . 6 6 1 9 Drop 22 | . 7 2 4 9 Fire 120 | 18 68 16 . 18 Melee . | . . . . . Ram . | . . . . . Kick 5 | . 1 2 . 2 Crush . | . . . . . Escape Stasis . | . . . . . Rewire . | . . . . . Trap . | . . . . . Miscellaneous . | . . . . . Route ------- -11/Scrapyard -10/Materials (discovered 5 exits: [*Mat x3] / [*Min x2]) -10/Mines (discovered 2 exits: [*Mat] / *Exi) -10/Exiles -9/Mines (discovered 2 exits: [*Mat x2]) History --------- Turn | Location | Event 2 | -11/Scrapyard | Discovered new exit (range 16) 328 | -11/Scrapyard | Entered Materials 329 | -10/Materials | Build established: Mutant 595 | -10/Materials | Discovered new exit (range 14) 829 | -10/Materials | Discovered new exit (range 15) 1091 | -10/Materials | Discovered new exit (range 8) 1176 | -10/Materials | Discovered new exit (range 16) 1283 | -10/Materials | Discovered new exit (range 15) 1519 | -10/Materials | Entered Mines 1522 | -10/Mines | Met a Derelict bent on vengeance 1621 | -10/Mines | Found a hidden stash of uninstalled traps 1826 | -10/Mines | Build established: Scavenger-Mutant 1946 | -10/Mines | Learned 2 Materials zone layouts 2108 | -10/Mines | Core integrity fell below 50% 2154 | -10/Mines | A weapon hastily lodged in a ceiling crevice suddenly fell to the ground 2307 | -10/Mines | Deemed a non-threat by the Exiles lab entrance 2307 | -10/Mines | Discovered new exit (range 5) 2366 | -10/Mines | Discovered new exit (range 15) 2497 | -10/Mines | Entered Exiles 2543 | -10/Exiles | Met 8R-AWN 2577 | -10/Exiles | Met EX-HEX 2648 | -10/Exiles | Met EX-DEC 2663 | -10/Exiles | Learned location of Zion (-6) 2755 | -10/Exiles | Discovered new exit (range 14) 3008 | -10/Exiles | Entered Mines 3182 | -9/Mines | Met a Derelict shopkeep closing up shop 3657 | -9/Mines | Discovered new exit (range 6) 3707 | -9/Mines | Learned location of Storage (-8) 3708 | -9/Mines | Discovered new exit (range 3) 3913 | -9/Mines | Learned Materials garrison access intel 3954 | -9/Mines | Excavation squad dispatched 3954 | -9/Mines | A large section of the Mines collapsed 4125 | -9/Mines | Core integrity fell below 20% 4130 | -9/Mines | Destroyed by L-31 Rogue with Katana Last Messages --------------- 03954_ K-01 Serf system terminally corrupted. 03954_ R-06 Scavenger system terminally corrupted. 03960_ as-44333 destroyed. 03963_ as-72088 knocked back. 03966_ as-72088 destroyed. 03969_ Acquired 6 matter. 03971_ Acquired 8 matter. 03974_ Acquired 2 matter. 03979_ System corrupted: Matter fused (-5). 03998_ Acquired 44 matter. 04003_ U-05 Engineer lays Concrete. 04061_ FW:PCD DXD:BOU=QVETNL2 04124_ Rnf. Deuterium Engine severed. 04124_ L-31 Rogue knocked back. 04127_ Destroyed Imp. Aluminum Leg. 04128_ Aluminum Leg destroyed. Map ----- +----------------------------------------------------+ | | | | | | | | | | | | | | | | | | | | | ????????????????????????????????????????? | | ????????????????????????????????????????? | | ???????###??????????????????????????????? | | ???#### ##???????????????????##????????? | | ??## #??????????????????? ????????? | | ?## #??########????????? ?????????? | | ## #???#""""""#????????? ?????????? | | ####???#!!*!/*#???????? ?????????? | | ##??????## ##???????? #?????????? | | #????????#[ ]#####????? #?????????? | | ##???????### ### ##???? #?????????? | | ######?##### X #### #?????????? | | #### ### # #?##??????? | | ### ## #### # ##?????? | | #### % #?????? | | g %@l #?????? | | g% #?????? | | ## ####!= ## % % #?????? | | ?####??##%=#### % #?????? | | ????????#%##??## ##?????? | | ????????#%#????# #;###??????? | | ????????#*#????# ### #???????? | | ????????#[#????## ##??# #??????? | | ????????#*#?????## ##????##??????? | | ????????#%#??????# ##?????????????? | | ????????#=#??????# ## ##??????????????? | | ????????#%#??????# #####???????????????? | | ????????#[#?????## #???????????????????? | | ????????#=##???## ##???####???????????? | | ####????# #??## #??## ##??????????? | | #????## #?## #### #??????????? | | #?????# ### ## #??????????? | | ## #?????# ## #########??? | | ?# #???### # #??? | | ?# #???# && #??? | | ?# #####%#### ########## #??? | | ?# |& #??# ##??????## #??? | | ?# ##### #??# ## ##??????## #??? | | ?# #??##%#??# ### ##????#### ##??? | | ?# #?##*=#### #?## ###????## ##???? | +----------------------------------------------------+ Best States ------------- Heat Dissipation 25 Energy Generation 16 Energy Capacity 290 Matter Stores 300 Matter Capacity 300 Sight Range 16 Terrain Scan Density 10 Evasion (%) 55 Item Schematics ----------------- None Robot Schematics ------------------ None Fabricated ------------ Nothing Repaired ---------- Nothing Studied --------- None Alien Tech Used ----------------- None Achievements -------------- None Challenges ------------ None Game ------ Seed WardroneReactionChaincannon Manual? 0 Play Time 00:16:53 Cumulative 184.5 hours Start 2026.06.22 @ 13:25:16 End 2026.06.22 @ 13:57:58 Sessions 4 Manual Loads 0 Difficulty Rogue Special Mode None Game No. 97 Rogue 97 Adventurer 0 Explorer 0 Win Type - Total 20 Types 10/1/5/1/0/1/1/1/0/0 Lore% 65 Gallery% 59 Achievement% 63 Wizard Run 0 Options --------- Layout 1 ASCII 0 Keyboard 0 Movement Arrows Keybinds 0 Fullscreen 1 Font 24/Tamsyn Map View 50x35 Zoom Use 0% Tactical HUD 1 Map Filters NONE Filters NONE Steam 1 RUN: 91987983-a5e2-4335-927a-4a289c5c4ca2